fUSD/lending_fUSD_20250806
["ID","MTS","AMOUNT","RATE_DAILY","PERIOD"]
[377590814,1754448753169,-1464.0,0.00036986,120]
[377590815,1754448753179,-1500.0,0.00036986,120]
[377590816,1754448753188,-900.0,0.00037,38]
[377590817,1754448753198,-1117.7,0.00037,30]
[377590818,1754448753208,-219.87674216,0.00037,2]
[377590819,1754448753217,-2395.82533645,0.00037031,2]
[377590820,1754448753227,-449.5587465,0.00037033,2]
[377590821,1754448753236,-3089.4719123,0.00037058,2]
[377590822,1754448753246,-151.56,0.00037071,60]
[377590823,1754448753256,-1401.81,0.0003716,2]
[377590824,1754448753265,-151.56,0.00037171,60]
[377590825,1754448753275,-513.0,0.0003719,29]
[377590826,1754448753284,-500.0,0.00037253,5]
[377590827,1754448753294,-155.643466,0.0003726,14]
[377590828,1754448753303,-1106.87216,0.0003726,14]
[377590829,1754448753312,-887.819081,0.0003726,14]
[377590830,1754448753322,-1255.615788,0.0003726,14]
[377590831,1754448753337,-192.679796,0.0003726,14]
[377590832,1754448753347,-151.028627,0.0003726,7]
[377590833,1754448753357,-1721.73,0.0003726,14]
[377590834,1754448753367,-74325.60496306,0.0003726,2]
[377590835,1754448753378,-74325.60496306,0.0003726,2]
[377590836,1754448753388,-74325.60496306,0.0003726,2]
[377590837,1754448753398,-74325.60496306,0.0003726,2]
[377590838,1754448753407,-151.0,0.0003726,7]
[377590839,1754448753416,-283.466846,0.0003726,7]
[377590840,1754448753426,-151.0,0.0003726,7]
[377590841,1754448753435,-151.0,0.0003726,7]
[377590842,1754448753445,-151.0,0.0003726,7]
[377590843,1754448753454,-151.0,0.0003726,7]
[377590844,1754448753464,-242.340368,0.0003726,7]
[377590845,1754448753473,-242.340368,0.0003726,7]
[377590846,1754448753483,-242.340368,0.0003726,7]
[377590847,1754448753493,-242.340368,0.0003726,7]
[377590848,1754448753502,-242.340368,0.0003726,7]
[377590849,1754448753512,-242.340368,0.0003726,7]
[377590850,1754448753521,-242.340368,0.0003726,7]
[377590851,1754448753531,-242.340378,0.0003726,7]
[377590852,1754448753540,-400.0,0.0003726,14]
[377590853,1754448753550,-273.96516961,0.0003726,14]
[377590854,1754448753560,-400.0,0.0003726,14]
[377590855,1754448753569,-400.0,0.0003726,14]
[377590856,1754448753580,-400.0,0.0003726,14]
[377590857,1754448753589,-400.0,0.0003726,14]
[377590858,1754448753599,-400.0,0.0003726,14]
[377590859,1754448753608,-400.0,0.0003726,14]
[377590860,1754448753618,-400.0,0.0003726,14]
[377590861,1754448753628,-300.91960115,0.0003726,14]
[377590862,1754448753637,-283.47355081,0.0003726,14]
[377590863,1754448753646,-400.0,0.0003726,14]
[377590864,1754448753656,-447.76420032,0.0003726,14]
[377590865,1754448753665,-400.0,0.0003726,14]
[377590866,1754448753674,-992.778479,0.0003726,7]
[377590867,1754448753684,-992.778479,0.0003726,7]
[377590868,1754448753693,-992.778471,0.0003726,7]
[377590869,1754448753702,-400.0,0.0003726,14]
[377590870,1754448753712,-400.0,0.0003726,14]
[377590871,1754448753722,-400.0,0.0003726,14]
[377590872,1754448753732,-400.0,0.0003726,14]
[377590873,1754448753742,-400.0,0.0003726,14]
[377590874,1754448753759,-400.0,0.0003726,14]
[377590875,1754448753772,-257.86304949,0.0003726,14]
[377590876,1754448753783,-1879.66,0.0003726,14]
[377590877,1754448753793,-517.54,0.0003726,14]
[377590878,1754448753802,-179.78535754,0.0003726,2]
[377590879,1754448753812,-400.0,0.0003726,14]
[377590880,1754448753821,-400.0,0.0003726,14]
[377590881,1754448753834,-400.0,0.0003726,14]
[377590882,1754448753844,-933.27,0.0003726,14]
[377590883,1754448753855,-466.86184742,0.0003726,14]
[377590884,1754448753866,-400.0,0.0003726,14]
[377590885,1754448753879,-708.86,0.0003726,14]
[377590886,1754448753889,-412.42,0.0003726,14]
[377590887,1754448753900,-452.41579424,0.0003726,14]
[377590888,1754448753910,-400.0,0.0003726,14]
[377590889,1754448753920,-415.77,0.0003726,14]
[377590890,1754448753930,-1925.55,0.0003726,14]
[377590891,1754448753940,-866.96,0.0003726,14]
[377590892,1754448753950,-523.82,0.0003726,14]
[377590893,1754448753960,-400.0,0.0003726,14]
[377590894,1754448753969,-400.0,0.0003726,14]
[377590895,1754448753980,-400.0,0.0003726,14]
[377590896,1754448753989,-1993.73,0.0003726,14]
[377590897,1754448753999,-478.37,0.0003726,14]
[377590898,1754448754009,-1455.59,0.0003726,14]
[377590899,1754448754019,-400.0,0.0003726,14]
[377590900,1754448754239,-1137.51,0.0003726,14]
[377590901,1754448754248,-1494.66,0.0003726,14]
[377590902,1754448754258,-2002.12,0.0003726,14]
[377590903,1754448754267,-400.0,0.0003726,14]
[377590904,1754448754276,-400.0,0.0003726,14]
[377590905,1754448754285,-400.0,0.0003726,14]
[377590906,1754448754294,-1040.39,0.0003726,14]
[377590907,1754448754303,-400.0,0.0003726,14]
[377590908,1754448754312,-400.0,0.0003726,14]
[377590909,1754448754321,-400.0,0.0003726,14]
[377590910,1754448754332,-400.0,0.0003726,14]
[377590911,1754448754341,-662.16,0.0003726,14]
[377590912,1754448754350,-400.0,0.0003726,14]
[377590913,1754448754359,-400.0,0.0003726,14]
[377590914,1754448754368,-400.0,0.0003726,14]
[377590915,1754448754377,-2153.57,0.0003726,14]
[377590916,1754448754386,-400.0,0.0003726,14]
[377590917,1754448754395,-1355.9,0.0003726,14]
[377590918,1754448754404,-904.68,0.0003726,14]
[377590919,1754448754413,-545.31,0.0003726,14]
[377590920,1754448754422,-400.0,0.0003726,14]
[377590921,1754448754431,-400.0,0.0003726,14]
[377590922,1754448754440,-400.0,0.0003726,14]
[377590923,1754448754450,-400.0,0.0003726,14]
[377590924,1754448754460,-726.19,0.0003726,14]
[377590925,1754448754469,-1848.23,0.0003726,14]
[377590926,1754448754478,-400.0,0.0003726,14]
[377590927,1754448754487,-400.0,0.0003726,14]
[377590928,1754448754496,-837.58,0.0003726,14]
[377590929,1754448754507,-400.0,0.0003726,14]
[377590930,1754448754517,-400.0,0.0003726,14]
[377590931,1754448754526,-426.53,0.0003726,14]
[377590932,1754448754535,-2053.66,0.0003726,14]
[377590933,1754448754545,-400.0,0.0003726,14]
[377590934,1754448754554,-463.84,0.0003726,14]
[377590935,1754448754564,-1680.73,0.0003726,14]
[377590936,1754448754573,-400.0,0.0003726,14]
[377590937,1754448754583,-589.79,0.0003726,14]
[377590938,1754448754592,-400.0,0.0003726,14]
[377590939,1754448754602,-400.0,0.0003726,14]
[377590940,1754448754611,-281.6305026,0.0003726,5]
[377590941,1754448754620,-485.82,0.0003726,14]
[377590942,1754448754629,-1174.99,0.0003726,14]
[377590943,1754448754638,-1560.83,0.0003726,14]
[377590944,1754448754647,-1343.09,0.0003726,14]
[377590945,1754448754656,-366.95809947,0.0003726,14]
[377590946,1754448754666,-400.0,0.0003726,14]
[377590947,1754448754675,-400.0,0.0003726,14]
[377590948,1754448754684,-400.0,0.0003726,14]
[377590949,1754448754693,-400.0,0.0003726,14]
[377590950,1754448754703,-400.0,0.0003726,14]
[377590951,1754448754712,-652.79,0.0003726,14]
[377590952,1754448754721,-444.81319926,0.0003726,14]
[377590953,1754448754730,-807.49,0.0003726,14]
[377590954,1754448754739,-2272.01,0.0003726,14]
[377590955,1754448754749,-439.11,0.0003726,14]
[377590956,1754448754758,-400.0,0.0003726,14]
[377590957,1754448754767,-400.0,0.0003726,14]
[377590958,1754448754776,-1269.54,0.0003726,14]
[377590959,1754448754786,-400.0,0.0003726,14]
[377590960,1754448754795,-400.0,0.0003726,14]
[377590961,1754448754804,-1601.77,0.0003726,14]
[377590962,1754448754814,-400.0,0.0003726,14]
[377590963,1754448754829,-549.88,0.0003726,14]
[377590964,1754448754838,-691.52,0.0003726,14]
[377590965,1754448754847,-400.0,0.0003726,14]
[377590966,1754448754856,-937.63,0.0003726,14]
[377590967,1754448754865,-400.0,0.0003726,14]
[377590968,1754448754876,-1238.53,0.0003726,14]
[377590969,1754448754886,-400.0,0.0003726,14]
[377590970,1754448754896,-758.93,0.0003726,14]
[377590971,1754448754905,-842.35,0.0003726,14]
[377590972,1754448754914,-400.0,0.0003726,14]
[377590973,1754448754926,-1051.66,0.0003726,14]
[377590974,1754448754935,-566.9,0.0003726,14]
[377590975,1754448754945,-1884.93,0.0003726,14]
[377590976,1754448754955,-1133.77,0.0003726,14]
[377590977,1754448754964,-400.0,0.0003726,14]
[377590978,1754448754974,-1135.75,0.0003726,14]
[377590979,1754448754983,-1340.96,0.0003726,14]
[377590980,1754448754993,-1269.95,0.0003726,14]
[377590981,1754448755003,-1245.02,0.0003726,14]
[377590982,1754448755012,-400.0,0.0003726,14]
[377590983,1754448755021,-400.0,0.0003726,14]
[377590984,1754448755030,-407.77840639,0.0003726,14]
[377590985,1754448755040,-400.0,0.0003726,14]
[377590986,1754448755050,-400.96,0.0003726,14]
[377590987,1754448755059,-888.4,0.0003726,14]
[377590988,1754448755068,-400.0,0.0003726,14]
[377590989,1754448755078,-1391.51,0.0003726,14]
[377590990,1754448755088,-885.84,0.0003726,14]
[377590991,1754448755097,-2022.35,0.0003726,14]
[377590992,1754448755106,-400.0,0.0003726,14]
[377590993,1754448755115,-400.0,0.0003726,14]
[377590994,1754448755124,-1485.63,0.0003726,14]
[377590995,1754448755133,-577.94,0.0003726,14]
[377590996,1754448755143,-400.0,0.0003726,14]
[377590997,1754448755152,-2205.6,0.0003726,14]
[377590998,1754448755161,-594.52,0.0003726,14]
[377590999,1754448755171,-162.38900075,0.0003726,14]
[377591000,1754448755180,-516.69,0.0003726,14]
[377591001,1754448755189,-400.99,0.0003726,14]
[377591002,1754448755199,-400.0,0.0003726,14]
[377591003,1754448755208,-963.31,0.0003726,14]
[377591004,1754448755217,-400.0,0.0003726,14]
[377591005,1754448755226,-400.0,0.0003726,14]
[377591006,1754448755235,-798.43,0.0003726,14]
[377591007,1754448755245,-400.0,0.0003726,14]
[377591008,1754448755254,-825.61,0.0003726,14]
[377591009,1754448755263,-400.0,0.0003726,14]
[377591010,1754448755272,-400.0,0.0003726,14]
[377591011,1754448755281,-405.1749882,0.0003726,14]
[377591012,1754448755290,-1955.89,0.0003726,14]
[377591013,1754448755299,-400.0,0.0003726,14]
[377591014,1754448755308,-425.14,0.0003726,14]
[377591015,1754448755318,-872.75,0.0003726,14]
[377591016,1754448755332,-672.46,0.0003726,14]
[377591017,1754448755341,-666.07,0.0003726,14]
[377591018,1754448755350,-400.0,0.0003726,7]
[377591019,1754448755359,-2048.4,0.0003726,14]
[377591020,1754448755368,-1186.37,0.0003726,14]
[377591021,1754448755378,-1867.25,0.0003726,14]
[377591022,1754448755387,-400.0,0.0003726,14]
[377591023,1754448755396,-400.0,0.0003726,14]
[377591024,1754448755405,-400.0,0.0003726,14]
[377591025,1754448755414,-400.0,0.0003726,14]
[377591026,1754448755423,-1486.37,0.0003726,14]
[377591027,1754448755432,-1282.75,0.0003726,14]
[377591028,1754448755441,-400.0,0.0003726,14]
[377591029,1754448755450,-620.41,0.0003726,14]
[377591030,1754448755459,-426.54,0.0003726,14]
[377591031,1754448755468,-1685.19,0.0003726,14]
[377591032,1754448755477,-546.47,0.0003726,14]
[377591033,1754448755487,-400.0,0.0003726,14]
[377591034,1754448755495,-1042.07,0.0003726,14]
[377591035,1754448755505,-607.47,0.0003726,14]
[377591036,1754448755516,-400.0,0.0003726,14]
[377591037,1754448755525,-1387.34,0.0003726,14]
[377591038,1754448755534,-1608.62,0.0003726,14]
[377591039,1754448755544,-640.46,0.0003726,14]
[377591040,1754448755553,-1266.36,0.0003726,14]
[377591041,1754448755563,-400.0,0.0003726,14]
[377591042,1754448755572,-1198.83,0.0003726,14]
[377591043,1754448755582,-850.06,0.0003726,14]
[377591044,1754448755591,-1040.96,0.0003726,14]
[377591045,1754448755600,-400.0,0.0003726,14]
[377591046,1754448755609,-400.0,0.0003726,14]
[377591047,1754448755619,-2213.68,0.0003726,14]
[377591048,1754448755628,-627.73,0.0003726,14]
[377591049,1754448755637,-400.0,0.0003726,14]
[377591050,1754448755647,-400.0,0.0003726,14]
[377591051,1754448755658,-471.56,0.0003726,14]
[377591052,1754448755668,-400.0,0.0003726,14]
[377591053,1754448755679,-511.19,0.0003726,14]
[377591054,1754448755689,-400.0,0.0003726,14]
[377591055,1754448755698,-400.0,0.0003726,14]
[377591056,1754448755707,-400.0,0.0003726,14]
[377591057,1754448755716,-400.0,0.0003726,14]
[377591058,1754448755725,-440.85,0.0003726,14]
[377591059,1754448755734,-860.58,0.0003726,14]
[377591060,1754448755744,-1113.65,0.0003726,14]
[377591061,1754448755753,-400.0,0.0003726,14]
[377591062,1754448755762,-379.6,0.0003726,14]
[377591063,1754448755771,-400.0,0.0003726,14]
[377591064,1754448755781,-985.67,0.0003726,14]
[377591065,1754448755790,-400.0,0.0003726,14]
[377591066,1754448755801,-523.26,0.0003726,14]
[377591067,1754448755810,-400.0,0.0003726,14]
[377591068,1754448755819,-400.0,0.0003726,14]
[377591069,1754448755829,-237.80520098,0.0003726,14]
[377591070,1754448755838,-531.05,0.0003726,14]
[377591071,1754448755848,-1788.17,0.0003726,14]
[377591072,1754448755858,-400.0,0.0003726,14]
[377591073,1754448755869,-1913.41,0.0003726,14]
[377591074,1754448755882,-1243.8,0.0003726,14]
[377591075,1754448755891,-400.0,0.0003726,14]
[377591076,1754448755901,-400.0,0.0003726,14]
[377591077,1754448755912,-2195.18,0.0003726,14]
[377591078,1754448755921,-400.0,0.0003726,14]
[377591079,1754448755930,-400.0,0.0003726,14]
[377591080,1754448755939,-400.0,0.0003726,14]
[377591081,1754448755949,-973.74,0.0003726,14]
[377591082,1754448755959,-400.0,0.0003726,14]
[377591083,1754448755969,-400.0,0.0003726,14]
[377591084,1754448755979,-511.74,0.0003726,14]
[377591085,1754448755989,-1237.93,0.0003726,14]
[377591086,1754448755999,-1927.1,0.0003726,14]
[377591087,1754448756010,-1421.29,0.0003726,14]
[377591088,1754448756020,-880.55,0.0003726,14]
[377591089,1754448756029,-1559.95,0.0003726,14]
[377591090,1754448756039,-400.0,0.0003726,14]
[377591091,1754448756048,-400.0,0.0003726,14]
[377591092,1754448756057,-764.11,0.0003726,14]
[377591093,1754448756067,-832.23,0.0003726,14]
[377591094,1754448756287,-223.98287044,0.0003726,14]
[377591095,1754448756296,-400.0,0.0003726,14]
[377591096,1754448756307,-1200.18,0.0003726,14]
[377591097,1754448756316,-982.62,0.0003726,14]
[377591098,1754448756325,-851.23,0.0003726,14]
[377591099,1754448756334,-483.16,0.0003726,14]
[377591100,1754448756343,-1009.21,0.0003726,14]
[377591101,1754448756352,-400.0,0.0003726,14]
[377591102,1754448756361,-400.0,0.0003726,14]
[377591103,1754448756370,-1056.91,0.0003726,14]
[377591104,1754448756380,-454.78,0.0003726,14]
[377591105,1754448756389,-1461.35,0.0003726,14]
[377591106,1754448756398,-400.0,0.0003726,14]
[377591107,1754448756406,-519.19,0.0003726,14]
[377591108,1754448756415,-239.15346841,0.0003726,14]
[377591109,1754448756424,-1050.13,0.0003726,14]
[377591110,1754448756434,-1907.53,0.0003726,14]
[377591111,1754448756442,-1615.6,0.0003726,14]
[377591112,1754448756452,-400.0,0.0003726,14]
[377591113,1754448756461,-1550.81,0.0003726,14]
[377591114,1754448756471,-400.0,0.0003726,14]
[377591115,1754448756480,-400.0,0.0003726,14]
[377591116,1754448756490,-400.0,0.0003726,14]
[377591117,1754448756501,-1830.1,0.0003726,14]
[377591118,1754448756512,-400.0,0.0003726,14]
[377591119,1754448756524,-400.0,0.0003726,14]
[377591120,1754448756534,-802.15,0.0003726,14]
[377591121,1754448756546,-1088.04,0.0003726,14]
[377591122,1754448756555,-400.0,0.0003726,14]
[377591123,1754448756564,-417.37,0.0003726,14]
[377591124,1754448756573,-1532.37,0.0003726,14]
[377591125,1754448756583,-3675.96,0.0003726,14]
[377591126,1754448756594,-498.81,0.0003726,14]
[377591127,1754448756603,-675.67,0.0003726,14]
[377591128,1754448756613,-1930.27,0.0003726,14]
[377591129,1754448756622,-477.88,0.0003726,14]
[377591130,1754448756633,-400.0,0.0003726,14]
[377591131,1754448756645,-400.0,0.0003726,14]
[377591132,1754448756654,-400.0,0.0003726,14]
[377591133,1754448756665,-1895.26,0.0003726,14]
[377591134,1754448756676,-400.0,0.0003726,14]
[377591135,1754448756685,-2398.75,0.0003726,14]
[377591136,1754448756695,-693.8,0.0003726,14]
[377591137,1754448756706,-1056.68,0.0003726,14]
[377591138,1754448756718,-400.0,0.0003726,14]
[377591139,1754448756728,-400.0,0.0003726,14]
[377591140,1754448756738,-694.7,0.0003726,14]
[377591141,1754448756748,-400.0,0.0003726,14]
[377591142,1754448756758,-1000.88,0.0003726,14]
[377591143,1754448756769,-456.83633615,0.0003726,14]
[377591144,1754448756779,-400.0,0.0003726,14]
[377591145,1754448756789,-422.7,0.0003726,14]
[377591146,1754448756799,-400.0,0.0003726,14]
[377591147,1754448756809,-400.0,0.0003726,14]
[377591148,1754448756818,-1087.98,0.0003726,14]
[377591149,1754448756828,-1317.27,0.0003726,14]
[377591150,1754448756837,-432.07,0.0003726,14]
[377591151,1754448756846,-660.48,0.0003726,14]
[377591152,1754448756855,-1841.73,0.0003726,14]
[377591153,1754448756865,-400.0,0.0003726,14]
[377591154,1754448756878,-400.0,0.0003726,14]
[377591155,1754448756888,-1706.66,0.0003726,14]
[377591156,1754448756897,-400.0,0.0003726,14]
[377591157,1754448756906,-2115.6,0.0003726,14]
[377591158,1754448756917,-2048.1,0.0003726,14]
[377591159,1754448756926,-400.0,0.0003726,14]
[377591160,1754448756936,-890.38,0.0003726,14]
[377591161,1754448756946,-400.0,0.0003726,14]
[377591162,1754448756955,-763.76,0.0003726,14]
[377591163,1754448756964,-400.0,0.0003726,14]
[377591164,1754448756974,-400.0,0.0003726,14]
[377591165,1754448756984,-400.0,0.0003726,14]
[377591166,1754448756995,-554.46,0.0003726,14]
[377591167,1754448757005,-1978.5,0.0003726,14]
[377591168,1754448757014,-3061.86,0.0003726,14]
[377591169,1754448757025,-572.41,0.0003726,14]
[377591170,1754448757036,-1869.25,0.0003726,14]
[377591171,1754448757046,-1241.1,0.0003726,14]
[377591172,1754448757057,-400.0,0.0003726,14]
[377591173,1754448757067,-400.0,0.0003726,14]
[377591174,1754448757077,-1742.73,0.0003726,14]
[377591175,1754448757087,-589.98,0.0003726,14]
[377591176,1754448757095,-1056.28,0.0003726,14]
[377591177,1754448757105,-1789.45,0.0003726,14]
[377591178,1754448757115,-400.0,0.0003726,14]
[377591179,1754448757124,-3264.35,0.0003726,14]
[377591180,1754448757136,-400.0,0.0003726,14]
[377591181,1754448757146,-1465.39,0.0003726,14]
[377591182,1754448757155,-719.58,0.0003726,14]
[377591183,1754448757165,-1335.74,0.0003726,14]
[377591184,1754448757174,-400.0,0.0003726,14]
[377591185,1754448757183,-1301.62,0.0003726,14]
[377591186,1754448757192,-400.0,0.0003726,14]
[377591187,1754448757202,-493.26,0.0003726,14]
[377591188,1754448757211,-1906.92,0.0003726,14]
[377591189,1754448757221,-400.0,0.0003726,14]
[377591190,1754448757230,-2206.71,0.0003726,14]
[377591191,1754448757240,-400.0,0.0003726,14]
[377591192,1754448757249,-451.74,0.0003726,14]
[377591193,1754448757258,-400.0,0.0003726,14]
[377591194,1754448757398,-400.0,0.0003726,14]
[377591195,1754448757442,-400.0,0.0003726,14]
[377591196,1754448757451,-400.0,0.0003726,14]
[377591197,1754448757460,-986.68,0.0003726,14]
[377591198,1754448757470,-1276.43,0.0003726,14]
[377591199,1754448757479,-922.85,0.0003726,14]
[377591200,1754448757488,-947.42,0.0003726,14]
[377591201,1754448757497,-400.0,0.0003726,14]
[377591202,1754448757507,-2195.08,0.0003726,14]
[377591203,1754448757516,-1464.57,0.0003726,14]
[377591204,1754448757526,-2197.84,0.0003726,14]
[377591205,1754448757535,-804.15,0.0003726,14]
[377591206,1754448757544,-400.0,0.0003726,14]
[377591207,1754448757553,-802.3,0.0003726,14]
[377591208,1754448757562,-400.0,0.0003726,14]
[377591209,1754448757571,-820.58,0.0003726,14]
[377591210,1754448757580,-400.0,0.0003726,14]
[377591211,1754448757590,-400.0,0.0003726,14]
[377591212,1754448757599,-684.16,0.0003726,14]
[377591213,1754448757608,-611.45,0.0003726,14]
[377591214,1754448757618,-744.31,0.0003726,14]
[377591215,1754448757627,-1536.69,0.0003726,14]
[377591216,1754448757637,-2158.92,0.0003726,14]
[377591217,1754448757646,-400.0,0.0003726,14]
[377591218,1754448757655,-461.52,0.0003726,14]
[377591219,1754448757665,-400.0,0.0003726,14]
[377591220,1754448757675,-400.0,0.0003726,14]
[377591221,1754448757684,-400.0,0.0003726,14]
[377591222,1754448757693,-545.58,0.0003726,14]
[377591223,1754448757702,-850.08,0.0003726,14]
[377591224,1754448757712,-1521.24,0.0003726,14]
[377591225,1754448757721,-482.90021381,0.0003726,14]
[377591226,1754448757730,-300.0,0.0003726,14]
[377591227,1754448757739,-521.67,0.0003726,14]
[377591228,1754448757748,-400.0,0.0003726,14]
[377591229,1754448757758,-1086.81,0.0003726,14]
[377591230,1754448757767,-2094.08,0.0003726,14]
[377591231,1754448757777,-1148.89,0.0003726,14]
[377591232,1754448757786,-400.0,0.0003726,14]
[377591233,1754448757795,-647.61,0.0003726,14]
[377591234,1754448757805,-1804.32,0.0003726,14]
[377591235,1754448757814,-688.12,0.0003726,14]
[377591236,1754448757824,-575.0,0.0003726,14]
[377591237,1754448757833,-460.78,0.0003726,14]
[377591238,1754448757843,-400.0,0.0003726,14]
[377591239,1754448757853,-1509.88,0.0003726,14]
[377591240,1754448757863,-400.0,0.0003726,14]
[377591241,1754448757877,-400.0,0.0003726,14]
[377591242,1754448757890,-400.0,0.0003726,14]
[377591243,1754448757899,-1836.14,0.0003726,14]
[377591244,1754448757911,-400.0,0.0003726,14]
[377591245,1754448757920,-774.95,0.0003726,14]
[377591246,1754448757930,-449.13,0.0003726,14]
[377591247,1754448757939,-1622.09,0.0003726,14]
[377591248,1754448757949,-400.0,0.0003726,14]
[377591249,1754448757959,-2961.28,0.0003726,14]
[377591250,1754448757969,-1032.0,0.0003726,14]
[377591251,1754448757980,-878.8,0.0003726,14]
[377591252,1754448757990,-2880.34,0.0003726,14]
[377591253,1754448758001,-1829.37,0.0003726,14]
[377591254,1754448758011,-1462.8,0.0003726,14]
[377591255,1754448758020,-3418.23,0.0003726,14]
[377591256,1754448758030,-1158.06,0.0003726,14]
[377591257,1754448758041,-400.0,0.0003726,14]
[377591258,1754448758050,-400.0,0.0003726,14]
[377591259,1754448758060,-1563.04,0.0003726,14]
[377591260,1754448758070,-400.0,0.0003726,14]
[377591261,1754448758080,-650.36,0.0003726,14]
[377591262,1754448758089,-1923.25,0.0003726,14]
[377591263,1754448758099,-2020.14,0.0003726,14]
[377591264,1754448758110,-2285.89,0.0003726,14]
[377591265,1754448758119,-3412.85,0.0003726,14]
[377591266,1754448758129,-444.68,0.0003726,14]
[377591267,1754448758139,-400.0,0.0003726,14]
[377591268,1754448758150,-400.0,0.0003726,14]
[377591269,1754448758159,-400.0,0.0003726,14]
[377591270,1754448758168,-400.0,0.0003726,14]
[377591271,1754448758178,-1704.34,0.0003726,14]
[377591272,1754448758188,-400.0,0.0003726,14]
[377591273,1754448758197,-981.32,0.0003726,14]
[377591274,1754448758206,-422.51,0.0003726,14]
[377591275,1754448758215,-1217.8,0.0003726,14]
[377591276,1754448758225,-400.0,0.0003726,14]
[377591277,1754448758235,-426.16,0.0003726,14]
[377591278,1754448758244,-719.56,0.0003726,14]
[377591279,1754448758253,-400.0,0.0003726,14]
[377591280,1754448758262,-2284.92,0.0003726,14]
[377591281,1754448758271,-2049.87,0.0003726,14]
[377591282,1754448758280,-400.0,0.0003726,14]
[377591283,1754448758289,-400.0,0.0003726,14]
[377591284,1754448758299,-400.0,0.0003726,14]
[377591285,1754448758307,-400.0,0.0003726,14]
[377591286,1754448758316,-1324.35,0.0003726,14]
[377591287,1754448758326,-400.0,0.0003726,14]
[377591288,1754448758336,-400.0,0.0003726,14]
[377591289,1754448758345,-536.81,0.0003726,14]
[377591290,1754448758355,-189.14133231,0.0003726,14]
[377591291,1754448758364,-1978.73,0.0003726,14]
[377591292,1754448758374,-2066.75,0.0003726,14]
[377591293,1754448758382,-400.0,0.0003726,14]
[377591294,1754448758392,-400.0,0.0003726,14]
[377591295,1754448758401,-400.0,0.0003726,14]
[377591296,1754448758410,-2370.33,0.0003726,14]
[377591297,1754448758421,-400.0,0.0003726,14]
[377591298,1754448758430,-618.59,0.0003726,14]
[377591299,1754448758440,-400.0,0.0003726,14]
[377591300,1754448758449,-400.0,0.0003726,14]
[377591301,1754448758458,-1380.46,0.0003726,14]
[377591302,1754448758468,-1918.49,0.0003726,14]
[377591303,1754448758477,-400.0,0.0003726,14]
[377591304,1754448758487,-681.38,0.0003726,14]
[377591305,1754448758496,-898.87,0.0003726,14]
[377591306,1754448758506,-1159.52,0.0003726,14]
[377591307,1754448758515,-589.89,0.0003726,14]
[377591308,1754448758524,-2526.57,0.0003726,14]
[377591309,1754448758533,-400.0,0.0003726,14]
[377591310,1754448758543,-400.0,0.0003726,14]
[377591311,1754448758553,-481.3,0.0003726,14]
[377591312,1754448758562,-400.0,0.0003726,14]
[377591313,1754448758571,-400.0,0.0003726,14]